[Event "NJSK 2021 Jeugd C"]
[Site "Almelo, Netherlands"]
[Date "2021.08.01"]
[Round "1.1"]
[White "Labruyere, Roger"]
[Black "Blom, Rens"]
[Result "1-0"]
[TimeControl "90min + 30sec/move"]
[WhiteElo "2003"]
[BlackElo "1650"]

1. e4 {[%clk 01:30:57]} {[%emt 00:00:03]} d6 {[%clk 01:30:54]} {[%emt
00:00:06]} 2. d4 {[%clk 01:31:14]} {[%emt 00:00:14]} Nf6 {[%clk 01:31:18]}
{[%emt 00:00:05]} 3. Nc3 {[%clk 01:31:38]} {[%emt 00:00:05]} g6 {[%clk
01:31:42]} {[%emt 00:00:07]} 4. g3 {[%clk 01:31:59]} {[%emt 00:00:08]} Bg7
{[%clk 01:31:45]} {[%emt 00:00:27]} 5. Bg2 {[%clk 01:32:21]} {[%emt 00:00:08]}
O-O {[%clk 01:31:55]} {[%emt 00:00:22]} 6. Nge2 {[%clk 01:32:44]} {[%emt
00:00:06]} e5 {[%clk 01:31:50]} {[%emt 00:00:35]} 7. O-O {[%clk 01:33:04]}
{[%emt 00:00:10]} Nc6 {[%clk 01:31:58]} {[%emt 00:00:22]} 8. dxe5 {[%clk
01:25:57]} {[%emt 00:07:37]} dxe5 {[%clk 01:28:46]} {[%emt 00:03:43]} 9. Nd5
{[%clk 01:24:31]} {[%emt 00:01:56]} Nxd5 {[%clk 01:24:02]} {[%emt 00:05:14]} 10.
exd5 {[%clk 01:24:57]} {[%emt 00:00:02]} Nd4 {[%clk 01:24:01]} {[%emt
00:00:32]} 11. c3 {[%clk 01:24:08]} {[%emt 00:01:19]} Nxe2+ {[%clk 01:22:47]}
{[%emt 00:01:44]} 12. Qxe2 {[%clk 01:24:28]} f5 {[%clk 01:23:15]} {[%emt
00:00:12]} 13. b3 {[%emt 00:01:29]} e4 {[%clk 01:18:09]} {[%emt 00:05:21]} 14.
Qd2 {[%clk 01:23:57]} {[%emt 00:00:16]} Re8 {[%clk 01:18:25]} {[%emt 00:00:14]}
15. Bb2 {[%clk 01:22:32]} {[%emt 00:01:55]} Qf6 {[%clk 01:12:20]} {[%emt
00:06:35]} 16. Rab1 {[%clk 01:21:21]} {[%emt 00:01:41]} b6 {[%clk 01:10:32]}
{[%emt 00:02:19]} 17. c4 {[%clk 01:21:37]} Qd6 {[%clk 01:10:11]} {[%emt
00:01:04]} 18. Bxg7 {[%clk 01:21:57]} Kxg7 {[%clk 01:10:11]} 19. b4 {[%emt
00:03:31]} Bb7 20. Rfd1 {[%clk 01:20:59]} {[%emt 00:00:37]} Rad8 {[%clk
01:03:26]} {[%emt 00:06:16]} 21. c5 {[%clk 01:16:59]} Qe5 {[%clk 00:57:45]}
{[%emt 00:10:40]} 22. d6 {[%clk 01:10:44]} Re6 {[%clk 00:57:45]} 23. Qg5 {[%clk
01:10:44]} Rd7 {[%clk 00:57:45]} 24. Qc1 {[%clk 01:10:44]} cxd6 {[%clk
00:57:45]} 25. c6 {[%clk 01:10:44]} Bxc6 {[%clk 00:57:45]} 26. Qxc6 {[%clk
01:10:44]} Ree7 {[%clk 00:57:45]} 27. Rd5 {[%clk 01:10:44]} Qf6 {[%clk
00:57:45]} 28. Rbd1 {[%clk 01:10:44]} Qb2 {[%clk 00:57:45]} 29. Rxd6 {[%clk
01:10:44]} Rc7 {[%clk 00:57:45]} 30. Qd5 {[%clk 01:10:44]} Qe2 {[%clk
00:57:45]} 31. Qd4+ {[%clk 01:10:44]} Kg8 {[%clk 00:57:45]} 32. Qf6 {[%clk
01:10:44]} 1-0

[Event "NJSK 2021 Jeugd C"]
[Site "Almelo, Netherlands"]
[Date "2021.08.01"]
[Round "1.2"]
[White "Katpatal, Akshaj"]
[Black "De Winter, Arthur"]
[Result "0-1"]
[TimeControl "90min + 30sec/move"]
[WhiteElo "1650"]
[BlackElo "2000"]

1. e4 {[%clk 01:30:54]} {[%emt 00:00:06]} c5 {[%clk 01:30:55]} {[%emt
00:00:05]} 2. Nf3 {[%clk 01:31:19]} {[%emt 00:00:05]} Nc6 {[%clk 01:31:17]}
{[%emt 00:00:08]} 3. c3 {[%clk 01:31:43]} {[%emt 00:00:05]} Nf6 {[%clk
01:31:10]} {[%emt 00:00:37]} 4. d3 {[%clk 01:32:09]} {[%emt 00:00:05]} g6
{[%clk 01:27:38]} {[%emt 00:04:01]} 5. Be3 {[%clk 01:31:27]} {[%emt 00:01:11]}
d6 {[%clk 01:27:25]} {[%emt 00:00:44]} 6. Nbd2 {[%clk 01:31:45]} {[%emt
00:00:12]} Bg7 {[%clk 01:27:03]} {[%emt 00:00:53]} 7. Be2 {[%clk 01:31:49]}
{[%emt 00:00:26]} O-O {[%clk 01:26:31]} {[%emt 00:01:02]} 8. O-O {[%clk
01:32:05]} {[%emt 00:00:13]} e5 {[%clk 01:13:35]} {[%emt 00:13:27]} 9. h3
{[%clk 01:32:13]} {[%emt 00:00:22]} Be6 {[%clk 01:12:57]} {[%emt 00:01:08]} 10.
d4 {[%clk 01:32:21]} {[%emt 00:00:22]} cxd4 {[%clk 01:11:34]} {[%emt 00:01:53]}
11. cxd4 {[%clk 01:32:34]} {[%emt 00:00:16]} d5 {[%clk 01:08:47]} {[%emt
00:03:18]} 12. exd5 {[%clk 01:31:42]} {[%emt 00:01:22]} Nxd5 {[%clk 01:08:37]}
{[%emt 00:00:40]} 13. dxe5 {[%clk 01:30:38]} {[%emt 00:01:34]} Nxe3 {[%clk
01:07:39]} {[%emt 00:01:29]} 14. fxe3 {[%clk 01:30:57]} {[%emt 00:00:10]} Nxe5
{[%clk 00:59:05]} {[%emt 00:09:04]} 15. Nxe5 {[%clk 01:30:59]} {[%emt
00:00:27]} Bxe5 {[%clk 00:59:24]} {[%emt 00:00:12]} 16. Nf3 {[%clk 01:30:32]}
{[%emt 00:00:57]} Qb6 {[%clk 00:57:34]} {[%emt 00:02:19]} 17. Qd3 {[%emt
00:02:02]} Bf5 {[%clk 00:53:13]} {[%emt 00:04:25]} 18. Qd2 {[%clk 01:29:09]}
{[%emt 00:00:43]} Rad8 {[%clk 00:52:02]} {[%emt 00:01:46]} 19. Qe1 {[%clk
01:29:24]} {[%emt 00:00:14]} Bxb2 {[%clk 00:50:55]} {[%emt 00:01:38]} 20. Rd1
{[%clk 01:29:42]} {[%emt 00:00:12]} Qxe3+ {[%clk 00:50:57]} {[%emt 00:00:28]}
21. Kh1 {[%clk 01:29:43]} {[%emt 00:00:19]} Bc3 {[%clk 00:48:50]} {[%emt
00:02:48]} 22. Qf2 {[%clk 01:30:02]} {[%emt 00:00:10]} Qxf2 {[%clk 00:48:32]}
{[%emt 00:00:48]} 23. Rxf2 {[%clk 01:30:15]} {[%emt 00:00:16]} Rxd1+ {[%clk
00:47:48]} {[%emt 00:01:16]} 24. Bxd1 {[%clk 01:30:32]} {[%emt 00:00:12]} Be6
{[%clk 00:46:58]} {[%emt 00:01:21]} 25. Ng5 {[%clk 01:30:43]} {[%emt 00:00:19]}
Bd5 {[%clk 00:42:04]} {[%emt 00:05:22]} 26. Bf3 {[%clk 01:30:03]} {[%emt
00:01:11]} Bxf3 {[%clk 00:41:39]} {[%emt 00:00:56]} 27. Rxf3 {[%clk 01:30:21]}
{[%emt 00:00:11]} Be5 {[%clk 00:41:38]} {[%emt 00:00:32]} 28. Ne4 {[%clk
01:30:31]} {[%emt 00:00:20]} Rd8 {[%clk 00:41:02]} {[%emt 00:01:05]} 29. Rf1
{[%clk 01:30:51]} {[%emt 00:00:11]} Rd3 {[%clk 00:39:29]} {[%emt 00:02:04]} 30.
Nc5 {[%clk 01:31:04]} {[%emt 00:00:16]} Ra3 {[%clk 00:39:01]} {[%emt 00:00:58]}
31. Nxb7 {[%clk 01:30:56]} {[%emt 00:00:38]} Rxa2 {[%clk 00:39:20]} {[%emt
00:00:11]} 32. Nc5 {[%clk 01:31:23]} {[%emt 00:00:02]} a5 {[%clk 00:38:59]}
{[%emt 00:00:52]} 33. Re1 {[%clk 01:31:29]} {[%emt 00:00:23]} Bg3 {[%clk
00:38:32]} {[%emt 00:00:57]} 34. Rb1 {[%clk 01:31:42]} {[%emt 00:00:17]} a4
{[%clk 00:38:29]} {[%emt 00:00:34]} 35. Na6 {[%clk 01:30:39]} {[%emt 00:01:32]}
a3 {[%clk 00:38:40]} {[%emt 00:00:20]} 36. h4 {[%clk 01:30:55]} {[%emt
00:00:13]} Rb2 {[%clk 00:39:02]} {[%emt 00:00:08]} 37. Ra1 {[%clk 01:31:18]}
{[%emt 00:00:07]} a2 {[%clk 00:39:27]} {[%emt 00:00:06]} 38. Nc5 {[%clk
01:31:35]} {[%emt 00:00:12]} Rb1+ {[%clk 00:39:53]} {[%emt 00:00:04]} 39. Rxb1
{[%clk 01:32:03]} {[%emt 00:00:02]} axb1=Q# {[%clk 00:39:41]} {[%emt 00:00:12]}
0-1

[Event "NJSK 2021 Jeugd C"]
[Site "Almelo, Netherlands"]
[Date "2021.08.01"]
[Round "1.3"]
[White "Verheij, Dana"]
[Black "Kien, Lancelot"]
[Result "1-0"]
[TimeControl "90min + 30sec/move"]
[WhiteElo "1931"]
[BlackElo "1650"]

1. e4 {[%clk 01:30:54]} {[%emt 00:00:05]} e5 {[%clk 01:30:57]} {[%emt
00:00:04]} 2. Nf3 {[%clk 01:31:06]} {[%emt 00:00:18]} Nc6 {[%clk 01:31:21]}
{[%emt 00:00:06]} 3. Bc4 {[%clk 01:31:20]} {[%emt 00:00:16]} Bc5 {[%clk
01:31:47]} {[%emt 00:00:04]} 4. c3 {[%clk 01:31:45]} {[%emt 00:00:05]} Nf6
{[%clk 01:32:03]} {[%emt 00:00:14]} 5. d4 {[%clk 01:31:51]} {[%emt 00:00:24]}
exd4 {[%clk 01:32:25]} {[%emt 00:00:08]} 6. e5 {[%clk 01:31:53]} {[%emt
00:00:28]} d5 {[%clk 01:27:13]} {[%emt 00:05:42]} 7. Bb5 {[%clk 01:30:57]}
{[%emt 00:01:25]} Ne4 {[%clk 01:26:07]} {[%emt 00:01:37]} 8. cxd4 {[%clk
01:30:09]} {[%emt 00:01:18]} Bb6 {[%clk 01:22:02]} {[%emt 00:04:35]} 9. O-O
{[%clk 01:28:47]} {[%emt 00:01:51]} O-O {[%clk 01:20:14]} {[%emt 00:02:18]} 10.
Bxc6 {[%clk 01:25:53]} {[%emt 00:03:25]} bxc6 {[%clk 01:20:33]} {[%emt
00:00:11]} 11. Qc2 {[%clk 01:25:40]} {[%emt 00:00:41]} c5 {[%clk 01:19:39]}
{[%emt 00:01:25]} 12. dxc5 {[%clk 01:23:44]} {[%emt 00:02:27]} Bxc5 {[%clk
01:19:26]} {[%emt 00:00:42]} 13. Nc3 {[%clk 01:20:56]} {[%emt 00:03:18]} Nxc3
{[%clk 01:15:48]} {[%emt 00:04:08]} 14. Qxc3 {[%clk 01:19:42]} {[%emt
00:05:19]} Bb6 {[%clk 01:11:40]} {[%emt 00:01:03]} 15. Bg5 {[%clk 01:16:50]}
{[%emt 00:03:22]} Qe8 {[%clk 01:09:03]} {[%emt 00:03:07]} 16. Rfd1 {[%clk
01:13:12]} {[%emt 00:04:07]} c6 {[%clk 01:05:30]} {[%emt 00:04:04]} 17. a4
{[%clk 01:07:28]} {[%emt 00:06:14]} a5 {[%clk 01:04:50]} {[%emt 00:01:10]} 18.
Rac1 {[%clk 01:02:22]} {[%emt 00:05:36]} Bb7 {[%clk 01:04:26]} {[%emt
00:00:54]} 19. Nh4 {[%clk 00:58:29]} {[%emt 00:04:23]} Qd7 {[%clk 01:00:28]}
{[%emt 00:04:29]} 20. Qf3 {[%clk 00:54:33]} {[%emt 00:04:22]} c5 {[%clk
00:53:45]} {[%emt 00:07:17]} 21. Nf5 {[%clk 00:47:14]} {[%emt 00:07:47]} d4
{[%clk 00:51:27]} {[%emt 00:02:49]} 22. Qf4 {[%clk 00:44:04]} {[%emt 00:03:37]}
Rfe8 {[%clk 00:45:43]} {[%emt 00:06:17]} 23. Nxg7 {[%clk 00:42:10]} {[%emt
00:02:22]} Qd5 {[%clk 00:38:44]} {[%emt 00:07:31]} 24. f3 {[%clk 00:37:36]}
{[%emt 00:05:02]} Rxe5 {[%clk 00:37:49]} {[%emt 00:01:27]} 25. Nh5 {[%clk
00:36:10]} {[%emt 00:01:55]} Bd8 {[%clk 00:32:31]} {[%emt 00:05:50]} 26. Nf6+
{[%clk 00:32:11]} {[%emt 00:04:28]} Bxf6 {[%clk 00:32:26]} {[%emt 00:00:34]} 27.
Bxf6 {[%clk 00:32:34]} {[%emt 00:00:07]} Re6 {[%clk 00:13:43]} {[%emt
00:19:14]} 28. Qh6 {[%clk 00:28:59]} {[%emt 00:04:01]} Rxf6 {[%clk 00:09:23]}
{[%emt 00:04:54]} 29. Qxf6 {[%clk 00:28:15]} {[%emt 00:01:14]} Qb3 {[%clk
00:08:46]} {[%emt 00:01:07]} 30. Qg5+ {[%clk 00:28:06]} {[%emt 00:00:38]} Kf8
{[%clk 00:09:03]} {[%emt 00:00:13]} 31. Qxc5+ {[%clk 00:28:07]} {[%emt
00:00:29]} 1-0

[Event "NJSK 2021 Jeugd C"]
[Site "Almelo, Netherlands"]
[Date "2021.08.01"]
[Round "1.4"]
[White "Kurt, Sascha"]
[Black "Smeets, Kobe"]
[Result "1/2-1/2"]
[TimeControl "90min + 30sec/move"]
[WhiteElo "1650"]
[BlackElo "1897"]

1. e4 {[%clk 01:30:57]} {[%emt 00:00:02]} c5 {[%clk 01:30:55]} {[%emt
00:00:06]} 2. Nf3 {[%clk 01:31:22]} {[%emt 00:00:04]} e6 {[%clk 01:31:18]}
{[%emt 00:00:07]} 3. d4 {[%clk 01:31:47]} {[%emt 00:00:05]} cxd4 {[%clk
01:31:45]} {[%emt 00:00:04]} 4. Nxd4 {[%clk 01:32:10]} {[%emt 00:00:06]} Nc6
{[%clk 01:32:11]} {[%emt 00:00:05]} 5. Nc3 {[%clk 01:32:31]} {[%emt 00:00:09]}
Qc7 {[%clk 01:32:35]} {[%emt 00:00:06]} 6. Be3 {[%clk 01:32:51]} {[%emt
00:00:10]} a6 {[%clk 01:32:57]} {[%emt 00:00:09]} 7. Qf3 {[%clk 01:33:10]}
{[%emt 00:00:10]} Ne5 {[%clk 01:32:15]} {[%emt 00:01:12]} 8. Qg3 {[%clk
01:33:29]} {[%emt 00:00:11]} h5 {[%clk 01:32:17]} {[%emt 00:00:28]} 9. O-O-O
{[%clk 01:33:14]} {[%emt 00:00:45]} h4 {[%clk 01:31:50]} {[%emt 00:00:58]} 10.
Qh3 {[%clk 01:32:39]} {[%emt 00:01:04]} Bb4 {[%clk 01:30:24]} {[%emt 00:01:56]}
11. Bf4 {[%clk 01:29:58]} {[%emt 00:03:11]} d6 {[%clk 01:29:07]} {[%emt
00:01:48]} 12. Be2 {[%clk 01:26:25]} {[%emt 00:04:01]} Nf6 {[%clk 01:27:43]}
{[%emt 00:01:54]} 13. Qe3 {[%clk 01:20:12]} {[%emt 00:06:44]} Bxc3 {[%clk
01:17:40]} {[%emt 00:10:34]} 14. bxc3 {[%clk 01:20:09]} {[%emt 00:00:32]} Qb6
{[%clk 01:16:44]} {[%emt 00:01:26]} 15. f3 {[%emt 00:04:40]} Qa5 {[%clk
01:05:12]} {[%emt 00:10:55]} 16. Kb2 {[%clk 01:13:09]} {[%emt 00:04:28]} Bd7
{[%clk 01:01:00]} {[%emt 00:04:41]} 17. Nb3 {[%clk 01:11:28]} {[%emt 00:02:12]}
Qc7 {[%clk 01:01:19]} {[%emt 00:00:11]} 18. Rd2 {[%clk 01:07:39]} {[%emt
00:04:19]} Bb5 {[%clk 00:46:32]} {[%emt 00:15:17]} 19. Bxe5 {[%clk 01:05:44]}
{[%emt 00:02:26]} dxe5 {[%clk 00:46:45]} {[%emt 00:00:16]} 20. Bxb5+ {[%clk
01:05:38]} {[%emt 00:00:36]} axb5 {[%clk 00:47:03]} {[%emt 00:00:12]} 21. Qc5
{[%clk 01:05:31]} {[%emt 00:00:38]} Qxc5 {[%clk 00:39:53]} {[%emt 00:07:40]} 22.
Nxc5 {[%clk 01:02:14]} {[%emt 00:00:06]} 1/2-1/2

[Event "NJSK 2021 Jeugd C"]
[Site "Almelo, Netherlands"]
[Date "2021.08.01"]
[Round "1.5"]
[White "Bakija, Alan"]
[Black "Pancharajah, Abisan"]
[Result "1-0"]
[TimeControl "90min + 30sec/move"]
[WhiteElo "1870"]
[BlackElo "1650"]

1. c4 {[%clk 01:30:56]} {[%emt 00:00:03]} Nf6 {[%clk 01:30:34]} {[%emt
00:00:26]} 2. Nf3 {[%clk 01:31:23]} {[%emt 00:00:04]} g6 {[%clk 01:30:28]}
{[%emt 00:00:36]} 3. d4 {[%clk 01:31:21]} {[%emt 00:00:32]} Bg7 {[%clk
01:22:39]} {[%emt 00:08:17]} 4. g3 {[%clk 01:31:37]} {[%emt 00:00:16]} O-O
{[%clk 01:12:01]} {[%emt 00:11:07]} 5. Bg2 {[%clk 01:31:57]} {[%emt 00:00:10]}
d6 {[%clk 01:04:26]} {[%emt 00:08:04]} 6. Nc3 {[%clk 01:31:52]} {[%emt
00:00:37]} Nbd7 {[%clk 00:58:52]} {[%emt 00:06:04]} 7. O-O {[%clk 01:30:45]}
{[%emt 00:01:38]} a5 {[%emt 00:04:42]} 8. e4 {[%clk 01:29:35]} {[%emt
00:01:30]} c5 {[%clk 00:54:24]} {[%emt 00:00:54]} 9. h3 {[%clk 01:29:18]}
{[%emt 00:00:49]} Rb8 {[%clk 00:48:47]} {[%emt 00:06:07]} 10. Be3 {[%clk
01:27:07]} {[%emt 00:02:40]} b6 {[%clk 00:45:13]} {[%emt 00:04:04]} 11. d5
{[%clk 01:22:24]} {[%emt 00:05:13]} Ba6 {[%clk 00:45:06]} {[%emt 00:00:37]} 12.
Nd2 {[%clk 01:21:00]} {[%emt 00:01:54]} Ne5 {[%clk 00:44:02]} {[%emt 00:01:34]}
13. Qe2 {[%clk 01:19:28]} {[%emt 00:02:03]} Qe8 {[%clk 00:42:14]} {[%emt
00:02:13]} 14. f4 {[%clk 01:18:32]} {[%emt 00:01:30]} Ned7 {[%clk 00:38:12]}
{[%emt 00:04:33]} 15. Kh2 {[%clk 01:17:48]} {[%emt 00:01:13]} Kh8 {[%emt
00:24:14]} 16. Nf3 {[%clk 00:54:55]} {[%emt 00:00:01]} e5 {[%clk 00:34:20]}
{[%emt 00:04:00]} 17. f5 {[%clk 00:50:50]} {[%emt 00:04:34]} gxf5 {[%clk
00:33:34]} {[%emt 00:01:18]} 18. exf5 {[%clk 00:51:12]} {[%emt 00:00:07]} e4
{[%clk 00:33:47]} {[%emt 00:00:18]} 19. Nd2 {[%clk 00:50:09]} {[%emt 00:01:32]}
Ne5 {[%clk 00:34:01]} {[%emt 00:00:16]} 20. b3 {[%clk 00:49:17]} {[%emt
00:01:23]} Nf3+ {[%clk 00:31:21]} {[%emt 00:03:09]} 21. Nxf3 {[%clk 00:37:47]}
{[%emt 00:12:00]} exf3 {[%clk 00:31:35]} {[%emt 00:00:16]} 22. Qxf3 {[%clk
00:37:30]} {[%emt 00:00:47]} Qd7 {[%clk 00:28:30]} {[%emt 00:03:34]} 23. g4
{[%clk 00:32:03]} {[%emt 00:05:58]} Rbe8 {[%clk 00:28:10]} {[%emt 00:00:49]} 24.
g5 {[%clk 00:23:40]} {[%emt 00:08:53]} Ng4+ {[%clk 00:26:47]} {[%emt 00:01:54]}
25. hxg4 {[%clk 00:23:58]} {[%emt 00:00:12]} Bxc3 {[%clk 00:27:11]} {[%emt
00:00:06]} 26. Rac1 {[%clk 00:18:43]} {[%emt 00:05:44]} Be5+ {[%clk 00:27:07]}
{[%emt 00:00:34]} 27. Bf4 {[%clk 00:18:07]} {[%emt 00:01:07]} Bc8 {[%clk
00:26:20]} {[%emt 00:01:17]} 28. Kg3 {[%clk 00:04:56]} {[%emt 00:13:41]} Qe7
{[%clk 00:25:20]} {[%emt 00:01:30]} 29. f6 {[%clk 00:04:04]} {[%emt 00:01:22]}
Bxf4+ {[%clk 00:24:48]} {[%emt 00:01:02]} 30. Qxf4 {[%clk 00:04:27]} {[%emt
00:00:07]} Qe3+ {[%clk 00:24:39]} {[%emt 00:00:39]} 31. Bf3 {[%clk 00:03:52]}
{[%emt 00:01:05]} Rg8 {[%clk 00:22:12]} {[%emt 00:02:56]} 32. Qxe3 {[%clk
00:03:35]} {[%emt 00:00:48]} Rxe3 {[%clk 00:22:34]} {[%emt 00:00:07]} 33. Kf4
{[%clk 00:03:56]} {[%emt 00:00:10]} Rge8 {[%clk 00:22:37]} {[%emt 00:00:26]} 34.
Rh1 {[%clk 00:01:29]} {[%emt 00:02:57]} R3e5 {[%clk 00:19:43]} {[%emt
00:03:24]} 35. Rh6 {[%clk 00:01:24]} {[%emt 00:00:36]} Rg8 {[%clk 00:19:54]}
{[%emt 00:00:18]} 36. Rch1 {[%clk 00:01:37]} {[%emt 00:00:18]} Rg7 {[%clk
00:16:10]} {[%emt 00:04:15]} 37. fxg7+ {[%clk 00:01:57]} {[%emt 00:00:09]} Kg8
{[%clk 00:16:19]} {[%emt 00:00:21]} 38. Rxh7 {[%clk 00:02:14]} {[%emt
00:00:12]} Bf5 {[%clk 00:16:48]} {[%emt 00:00:02]} 39. gxf5 {[%clk 00:02:24]}
{[%emt 00:00:20]} Rxf5+ {[%clk 00:16:28]} {[%emt 00:00:50]} 40. Kxf5 {[%clk
00:02:45]} {[%emt 00:00:09]} f6 {[%clk 00:16:49]} {[%emt 00:00:08]} 41. Rh8+
{[%clk 00:03:08]} {[%emt 00:00:08]} Kf7 {[%emt 00:00:10]} 42. g6+ {[%clk
00:03:21]} {[%emt 00:00:13]} Ke7 {[%clk 00:17:32]} {[%emt 00:00:11]} 43. Re1+
{[%clk 00:03:31]} {[%emt 00:00:20]} Kd7 {[%clk 00:17:51]} {[%emt 00:00:11]} 44.
Rhe8 {[%clk 00:03:52]} {[%emt 00:00:09]} 1-0